[Event "RUS-ch Blitz Women 2018"]
[Site "Sochi"]
[Date "2018.10.07"]
[Round "19"]
[White "Dordzhieva, Dinara"]
[Black "Maletina, Tatiana"]
[Result "1-0"]
[ECO "A06"]
[WhiteElo "2340"]
[BlackElo "2270"]
[Annotator "NA"]
[PlyCount "119"]
[EventDate "2018.10.07"]
[EventType "swiss"]
[EventCountry "RUS"]
[SourceTitle "playchess.com"]
[Source "ChessBase"]
[SourceQuality "1"]
[TimeControl "180+2"]

1. Nf3 {[%emt 0:00:08]} d5 {[%emt 0:00:02]} 2. g3 {[%emt 0:00:01]} Bg4 {[%emt 0:00:03]} 3. Bg2 {[%emt 0:00:00]} Nd7 4. d4 c6 {[%emt 0:00:04]} 5. h3 {[%emt 0:00:02]} Bh5 {[%emt 0:00:01]} 6. b3 {[%emt 0:00:01]} e6 {[%emt 0:00:01]} 7. c4 {[%emt 0:00:01]} f5 {[%emt 0:00:03]} 8. O-O {[%emt 0:00:07]} Ngf6 {[%emt 0:00:01]} 9. Ba3 {[%emt 0:00:02]} Bxa3 10. Nxa3 {[%emt 0:00:01]} O-O {[%emt 0:00:06]} 11. Nc2 {[%emt 0:00:31]} Ne4 {[%emt 0:00:01]} 12. Nce1 {[%emt 0:00:07]} Qf6 {[%emt 0:00:08]} 13. Rc1 {[%emt 0:00:01]} Rad8 {[%emt 0:00:03]} 14. Nd3 {[%emt 0:00:00]} Bxf3 {[%emt 0:00:30]} 15. exf3 {[%emt 0:00:01]} Nd6 {[%emt 0:00:00]} 16. Nf4 {[%emt 0:00:24]} dxc4 {[%emt 0:00:15]} 17. bxc4 {[%emt 0:00:01]} e5 {[%emt 0:00:01]} 18. dxe5 {[%emt 0:00:06]} Nxe5 {[%emt 0:00:01]} 19. Qb3 {[%emt 0:00:00]} Qf7 {[%emt 0:00:07]} 20. c5 {[%emt 0:00:16]} Nb5 {[%emt 0:00:15]} 21. Rfe1 {[%emt 0:00:21]} Rfe8 {[%emt 0:00:03]} 22. Qxf7+ {[%emt 0:00:34]} Kxf7 {[%emt 0:00:01]} 23. Rcd1 {[%emt 0:00:09]} Rxd1 {[%emt 0:00:08]} 24. Rxd1 {[%emt 0:00:01]} Nc3 {[%emt 0:00:03]} 25. Rd2 {[%emt 0:00:02]} Re7 {[%emt 0:00:23]} 26. Nd3 {[%emt 0:00:14]} Nxd3 {[%emt 0:00:12]} 27. Rxd3 {[%emt 0:00:01]} Ne2+ {[%emt 0:00:08]} 28. Kh2 {[%emt 0:00:01]} f4 {[%emt 0:00:02]} 29. Bf1 {[%emt 0:00:04]} g5 {[%emt 0:00:17]} 30. Rd2 {[%emt 0:00:09]} Nc3 {[%emt 0:00:01]} 31. Bc4+ {[%emt 0:00:01]} Kf6 {[%emt 0:00:03]} 32. Rd6+ {[%emt 0:00:02]} Ke5 {[%emt 0:00:04]} 33. Rd2 {[%emt 0:00:04]} Na4 {[%emt 0:00:06]} 34. h4 {[%emt 0:00:25]} h6 {[%emt 0:00:02]} 35. Re2+ {[%emt 0:00:05]} Kf6 {[%emt 0:00:01]} 36. Rd2 {[%emt 0:00:00]} gxh4 {[%emt 0:00:07]} 37. gxh4 {[%emt 0:00:04]} Nxc5 {[%emt 0:00:02]} 38. Rd6+ {[%emt 0:00:00]} Kg7 {[%emt 0:00:01]} 39. h5 {[%emt 0:00:01]} b5 {[%emt 0:00:14]} 40. Rg6+ {[%emt 0:00:07]} Kh7 {[%emt 0:00:02]} 41. Bg8+ {[%emt 0:00:01]} Kh8 {[%emt 0:00:02]} 42. Rxc6 {[%emt 0:00:00]} Nd3 {[%emt 0:00:05]} 43. Bb3 {[%emt 0:00:02]} Ne5 {[%emt 0:00:05]} 44. Rxh6+ {[%emt 0:00:01]} Kg7 {[%emt 0:00:00]} 45. Ra6 {[%emt 0:00:02]} Nxf3+ {[%emt 0:00:02]} 46. Kg2 {[%emt 0:00:00]} Ng5 {[%emt 0:00:03]} 47. h6+ {[%emt 0:00:02]} Kh8 {[%emt 0:00:01]} 48. Rc6 {[%emt 0:00:02]} Nf7 {[%emt 0:00:14]} 49. Bc2 {[%emt 0:00:01]} Re8 {[%emt 0:00:03]} 50. Rc7 {[%emt 0:00:07]} Nxh6 51. Rh7+ Kg8 52. Rxh6 Re2 {[%emt 0:00:15]} 53. Bb3+ {[%emt 0:00:01]} Kg7 {[%emt 0:00:01]} 54. Ra6 {[%emt 0:00:01]} Re7 {[%emt 0:00:01]} 55. Ra5 {[%emt 0:00:01]} Rb7 {[%emt 0:00:03]} 56. Kf3 {[%emt 0:00:01]} Kf6 {[%emt 0:00:00]} 57. Kxf4 {[%emt 0:00:01]} Rh7 {[%emt 0:00:02]} 58. Ra6+ {[%emt 0:00:00]} Kg7 {[%emt 0:00:03]} 59. Rxa7+ Kh6 {[%emt 0:00:01]} 60. Rxh7+ {[%emt 0:00:03]} 1-0

[Event "RUS-ch Blitz Women 2018"]
[Site "Sochi"]
[Date "2018.10.07"]
[Round "19"]
[White "Guseva, Marina"]
[Black "Charochkina, Daria"]
[Result "0-1"]
[ECO "A81"]
[WhiteElo "2292"]
[BlackElo "2344"]
[Annotator "NA"]
[PlyCount "140"]
[EventDate "2018.10.07"]
[EventType "swiss"]
[EventCountry "RUS"]
[SourceTitle "playchess.com"]
[Source "ChessBase"]
[SourceQuality "1"]
[TimeControl "180+2"]

1. d4 {[%emt 0:00:00]} f5 {[%emt 0:00:00]} 2. g3 {[%emt 0:00:02]} Nf6 {[%emt 0:00:00]} 3. Bg2 {[%emt 0:00:01]} e6 {[%emt 0:00:00]} 4. c4 {[%emt 0:00:03]} d5 {[%emt 0:00:01]} 5. b3 {[%emt 0:00:01]} c6 {[%emt 0:00:01]} 6. Nh3 $11 {[%emt 0:00:01] LiveBook: 17 Partien} Bd6 {[%emt 0:00:04]} 7. O-O {[%emt 0:00:03]} O-O {[%emt 0:00:09]} 8. Ba3 {[%emt 0:00:17]} b6 {[%emt 0:00:02]} 9. Bxd6 {[%emt 0:00:01]} Qxd6 {[%emt 0:00:01]} 10. Nd2 {[%emt 0:00:02]} Nbd7 {[%emt 0:00:02]} 11. Nf4 {[%emt 0:00:10]} Bb7 {[%emt 0:00:08]} 12. e3 {[%emt 0:00:02]} g5 {[%emt 0:00:12]} 13. Nd3 {[%emt 0:00:10]} g4 {[%emt 0:00:13]} 14. cxd5 {[%emt 0:00:11]} exd5 {[%emt 0:00:10]} 15. Nf4 {[%emt 0:00:02]} Rf7 {[%emt 0:00:08]} 16. Rc1 {[%emt 0:00:05]} Re8 {[%emt 0:00:27]} 17. Qc2 {[%emt 0:00:04]} Ne4 {[%emt 0:00:04]} 18. Nxe4 {[%emt 0:00:15]} fxe4 {[%emt 0:00:02]} 19. Qe2 {[%emt 0:00:08]} Rg7 {[%emt 0:00:06]} 20. h4 {[%emt 0:00:11]} gxh3 {[%emt 0:00:14]} 21. Bxh3 {[%emt 0:00:02]} Kh8 {[%emt 0:00:06]} 22. Kg2 {[%emt 0:00:02]} Reg8 {[%emt 0:00:02]} 23. Rh1 {[%emt 0:00:04]} Bc8 {[%emt 0:00:17]} 24. Be6 {[%emt 0:00:15]} Re8 {[%emt 0:00:06]} 25. Rh6 {[%emt 0:00:21]} Nf8 {[%emt 0:00:03]} 26. Qh5 {[%emt 0:00:18]} Rxe6 {[%emt 0:00:12]} 27. Nxe6 {[%emt 0:00:02]} Bxe6 {[%emt 0:00:03]} 28. Qe8 {[%emt 0:00:04]} Bf7 {[%emt 0:00:17]} 29. Rxd6 {[%emt 0:00:05]} Bxe8 {[%emt 0:00:00]} 30. Rd8 {[%emt 0:00:01]} Re7 {[%emt 0:00:03]} 31. b4 {[%emt 0:00:07]} b5 {[%emt 0:00:05]} 32. a4 {[%emt 0:00:03]} a6 {[%emt 0:00:18]} 33. axb5 {[%emt 0:00:01]} axb5 {[%emt 0:00:00]} 34. Ra1 {[%emt 0:00:01]} Kg8 {[%emt 0:00:01]} 35. Raa8 {[%emt 0:00:06]} Kf7 {[%emt 0:00:01]} 36. Ra1 {[%emt 0:00:15]} Ne6 {[%emt 0:00:02]} 37. Rc8 {[%emt 0:00:06]} Ng5 {[%emt 0:00:03]} 38. Rca8 {[%emt 0:00:04]} Bd7 {[%emt 0:00:05]} 39. R1a7 {[%emt 0:00:03]} Bh3+ {[%emt 0:00:09]} 40. Kh2 {[%emt 0:00:02]} Be6 {[%emt 0:00:05]} 41. Rxe7+ {[%emt 0:00:04]} Kxe7 {[%emt 0:00:00]} 42. Ra7+ {[%emt 0:00:02]} Bd7 {[%emt 0:00:07]} 43. g4 {[%emt 0:00:05]} Nf3+ {[%emt 0:00:01]} 44. Kg3 {[%emt 0:00:01]} Ne1 {[%emt 0:00:01]} 45. Ra1 {[%emt 0:00:07]} Nc2 {[%emt 0:00:07]} 46. Rh1 {[%emt 0:00:01]} Nxb4 {[%emt 0:00:02]} 47. Rxh7+ {[%emt 0:00:01]} Kd6 {[%emt 0:00:01]} 48. f4 {[%emt 0:00:03]} exf3 {[%emt 0:00:04]} 49. Kxf3 {[%emt 0:00:01]} Nc2 {[%emt 0:00:04]} 50. Rh2 {[%emt 0:00:02]} Na3 {[%emt 0:00:02]} 51. g5 {[%emt 0:00:05]} b4 {[%emt 0:00:03]} 52. Rb2 {[%emt 0:00:01]} c5 {[%emt 0:00:04]} 53. dxc5+ {[%emt 0:00:01]} Kxc5 {[%emt 0:00:00]} 54. g6 {[%emt 0:00:02]} Kc4 {[%emt 0:00:02]} 55. g7 {[%emt 0:00:02]} Be6 {[%emt 0:00:01]} 56. Kf4 {[%emt 0:00:03]} Kc3 {[%emt 0:00:01]} 57. Rh2 {[%emt 0:00:04]} b3 {[%emt 0:00:02]} 58. Ke5 {[%emt 0:00:03]} Bf7 {[%emt 0:00:02]} 59. Kf6 {[%emt 0:00:01]} Bg8 {[%emt 0:00:02]} 60. Rh8 {[%emt 0:00:01]} b2 {[%emt 0:00:01]} 61. Rxg8 {[%emt 0:00:01]} b1=Q {[%emt 0:00:01]} 62. Rc8+ {[%emt 0:00:01]} Nc4 {[%emt 0:00:02]} 63. g8=Q {[%emt 0:00:03]} Qf1+ {[%emt 0:00:02]} 64. Ke7 {[%emt 0:00:02]} Qf5 {[%emt 0:00:06]} 65. Qe6 {[%emt 0:00:04]} Qd3 {[%emt 0:00:03]} 66. Rc5 {[%emt 0:00:04]} Qh7+ {[%emt 0:00:03]} 67. Kd8 {[%emt 0:00:03]} Qh8+ {[%emt 0:00:02]} 68. Kc7 {[%emt 0:00:02]} Qg7+ {[%emt 0:00:01]} 69. Kd8 {[%emt 0:00:08]} Qf8+ {[%emt 0:00:01]} 70. Kd7 {[%emt 0:00:01]} Qxc5 {[%emt 0:00:00]} 0-1

[Event "RUS-ch Blitz Women 2018"]
[Site "Sochi"]
[Date "2018.10.07"]
[Round "19"]
[White "Maltsevskaya, Aleksandra"]
[Black "Kashlinskaya, Alina"]
[Result "0-1"]
[ECO "A07"]
[WhiteElo "2290"]
[BlackElo "2447"]
[Annotator "NA"]
[PlyCount "80"]
[EventDate "2018.10.07"]
[EventType "swiss"]
[EventCountry "RUS"]
[SourceTitle "playchess.com"]
[Source "ChessBase"]
[SourceQuality "1"]
[TimeControl "180+2"]

1. Nf3 {[%emt 0:00:00]} Nf6 {[%emt 0:00:00]} 2. g3 {[%emt 0:00:01]} d5 {[%emt 0:00:00]} 3. Bg2 {[%emt 0:00:02]} Bg4 {[%emt 0:00:01]} 4. O-O {[%emt 0:00:02]} c6 {[%emt 0:00:01]} 5. d3 {[%emt 0:00:08]} Nbd7 {[%emt 0:00:03] LiveBook: 2109 Games} 6. Nbd2 {[%emt 0:00:02]} e5 {[%emt 0:00:01]} 7. h3 {[%emt 0:00:03]} Bh5 {[%emt 0:00:02]} 8. e4 {[%emt 0:00:02]} dxe4 {[%emt 0:00:02]} 9. dxe4 {[%emt 0:00:01]} Bc5 {[%emt 0:00:01]} 10. c3 {[%emt 0:00:02]} a5 {[%emt 0:00:02] A07: Réti Opening: New York and Capablanca Systems} (10... O-O 11. Qc2 a5 12. a4 Bxf3 13. Nxf3 Qc7 14. Bd2 Rfe8 15. b4 Bf8 16. Rab1 c5 17. bxa5 Rxa5 18. c4 {0-1 (46) Golubov,S (2481)-Pridorozhni,A (2579) St Petersburg 2016}) 11. Qe2 {[%emt 0:00:08]} O-O {[%emt 0:00:02]} 12. Rd1 {[%emt 0:00:01]} Qc7 {[%emt 0:00:05]} 13. Nf1 {[%emt 0:00:03]} a4 $146 {[%emt 0:00:08]} ({Predecessor:} 13... Rfd8 14. g4 Bg6 15. Ng3 Nf8 16. Bg5 Be7 17. h4 h6 18. Bxf6 Bxf6 19. g5 hxg5 20. hxg5 Be7 21. Bh3 Rxd1+ 22. Rxd1 Rd8 23. Rxd8 Qxd8 {½-½ (23) Milligan,T-Mannion,S St Andrews 1981}) 14. g4 {[%emt 0:00:13]} Bg6 {[%emt 0:00:01]} 15. Nh4 {[%emt 0:00:02]} b5 {[%emt 0:00:29]} 16. Nf5 {[%emt 0:00:01]} Rfe8 {[%emt 0:00:12]} 17. N1g3 {[%emt 0:00:11]} Nb6 {[%emt 0:00:06] [#]} 18. h4 {[%emt 0:00:13]} (18. g5 $1 $16 {[%cal Rg5f6]} Nfd7 19. h4) 18... Nc4 {[%emt 0:00:12]} (18... Bxf5 $11 19. Nxf5 Nfd7) 19. g5 {[%emt 0:00:15]} Nd7 {[%emt 0:00:07]} 20. h5 {[%emt 0:00:01]} Bxf5 {[%emt 0:00:01]} 21. exf5 {[%emt 0:00:01]} e4 {[%emt 0:00:07]} 22. Nxe4 {[%emt 0:00:08]} Bb6 {[%emt 0:00:09]} 23. g6 $11 {[%emt 0:00:04]} ({Better is} 23. Qg4 $18 Nde5 24. Qg3) 23... Nc5 {[%emt 0:00:06]} 24. gxh7+ {[%emt 0:00:13]} Kh8 {[%emt 0:00:11]} 25. Qg4 {[%emt 0:00:18]} Nxe4 {[%emt 0:00:02]} 26. Bxe4 {[%emt 0:00:01]} f6 {[%emt 0:00:41]} 27. Bg2 {[%emt 0:00:22]} Ne5 {[%emt 0:00:25]} 28. Qh4 {[%emt 0:00:02]} Kxh7 {[%emt 0:00:06]} 29. Bf4 {[%emt 0:00:02]} Qf7 {[%emt 0:00:17]} 30. Rd6 {[%emt 0:00:20]} Rad8 {[%emt 0:00:03]} 31. Rad1 {[%emt 0:00:08]} Rxd6 {[%emt 0:00:01]} 32. Rxd6 {[%emt 0:00:01]} Qe7 {[%emt 0:00:14]} 33. Re6 {[%emt 0:00:10]} Qd7 {[%emt 0:00:02]} 34. h6 {[%emt 0:00:01]} g5 {[%emt 0:00:02]} 35. fxg6+ {[%emt 0:00:03]} Nxg6 {[%emt 0:00:01]} 36. Qxf6 {[%emt 0:00:22]} Rxe6 {[%emt 0:00:01]} 37. Qg5 {[%emt 0:00:02]} Nxf4 {[%emt 0:00:02]} 38. Qxf4 {[%emt 0:00:03]} Qd1+ {[%emt 0:00:01]} 39. Kh2 {[%emt 0:00:03]} Rxh6+ {[%emt 0:00:01]} 40. Bh3 {[%emt 0:00:03]} Qd6 {[%emt 0:00:01]} 0-1

[Event "RUS-ch Blitz Women 2018"]
[Site "Sochi"]
[Date "2018.10.07"]
[Round "19"]
[White "Potapova, Margarita"]
[Black "Solozhenkina, Elizaveta"]
[Result "0-1"]
[ECO "B23"]
[WhiteElo "2284"]
[BlackElo "2134"]
[Annotator "NA"]
[PlyCount "46"]
[EventDate "2018.10.07"]
[EventType "swiss"]
[EventCountry "RUS"]
[SourceTitle "playchess.com"]
[Source "ChessBase"]
[SourceQuality "1"]
[TimeControl "180+2"]

1. e4 {[%emt 0:00:00]} c5 {[%emt 0:00:00]} 2. Nc3 {[%emt 0:00:01]} d6 {[%emt 0:00:00]} 3. d4 {[%emt 0:00:00]} cxd4 {[%emt 0:00:00]} 4. Qxd4 {[%emt 0:00:01]} Nc6 {[%emt 0:00:09]} 5. Qd2 {[%emt 0:00:01]} g6 {[%emt 0:00:09]} 6. b3 {[%emt 0:00:01]} Bh6 {[%emt 0:00:02]} 7. f4 {[%emt 0:00:17]} Nf6 {[%emt 0:00:13]} 8. Bb2 {[%emt 0:00:14]} O-O {[%emt 0:00:11]} 9. O-O-O {[%emt 0:00:18]} e5 {[%emt 0:00:01]} 10. g3 {[%emt 0:00:18]} Bg4 {[%emt 0:00:33]} 11. Be2 {[%emt 0:00:03]} Nd4 {[%emt 0:00:19]} 12. Bxg4 {[%emt 0:00:06]} Nxg4 {[%emt 0:00:01]} 13. Nd5 {[%emt 0:00:03]} Ne6 {[%emt 0:01:14]} 14. Kb1 {[%emt 0:00:08]} Nc5 {[%emt 0:00:09]} 15. Qe2 {[%emt 0:00:07]} Nf6 {[%emt 0:00:06]} 16. fxe5 {[%emt 0:00:06]} dxe5 {[%emt 0:00:07]} 17. Bxe5 {[%emt 0:00:10]} Nxd5 {[%emt 0:00:10]} 18. Rxd5 {[%emt 0:00:02]} Qb6 {[%emt 0:00:04]} 19. Bd4 Rac8 20. Qf2 {[%emt 0:00:23]} Rfd8 {[%emt 0:00:05]} 21. Bxc5 {[%emt 0:00:10]} Rxd5 {[%emt 0:00:01]} 22. Bxb6 {[%emt 0:00:05]} Rd1+ {[%emt 0:00:01]} 23. Kb2 {[%emt 0:00:01]} Bc1+ {[%emt 0:00:00]} 0-1

[Event "RUS-ch Blitz Women 2018"]
[Site "Sochi"]
[Date "2018.10.07"]
[Round "19"]
[White "Kovanova, Baira"]
[Black "Nebolsina, Vera"]
[Result "1-0"]
[ECO "A05"]
[WhiteElo "2205"]
[BlackElo "2220"]
[Annotator "NA"]
[PlyCount "47"]
[EventDate "2018.10.07"]
[EventType "swiss"]
[EventCountry "RUS"]
[SourceTitle "playchess.com"]
[Source "ChessBase"]
[SourceQuality "1"]
[TimeControl "180+2"]

1. Nf3 {[%emt 0:00:00]} Nf6 {[%emt 0:00:00]} 2. g3 {[%emt 0:00:01]} g6 {[%emt 0:00:03]} 3. Bg2 {[%emt 0:00:01]} Bg7 {[%emt 0:00:02]} 4. O-O {[%emt 0:00:02]} O-O {[%emt 0:00:02]} 5. c4 {[%emt 0:00:01]} d6 {[%emt 0:00:07]} 6. Nc3 {[%emt 0:00:04]} e5 {[%emt 0:00:25]} 7. d3 {[%emt 0:00:01]} c6 {[%emt 0:00:11]} 8. h3 {[%emt 0:00:07]} h6 {[%emt 0:00:02]} 9. e4 {[%emt 0:00:05]} Be6 {[%emt 0:00:13]} 10. Be3 {[%emt 0:00:05]} Nbd7 {[%emt 0:00:09]} 11. b3 {[%emt 0:00:03]} d5 {[%emt 0:00:42]} 12. exd5 {[%emt 0:00:24]} cxd5 {[%emt 0:00:01]} 13. d4 {[%emt 0:00:01]} dxc4 {[%emt 0:00:21]} 14. d5 {[%emt 0:00:21]} Bf5 {[%emt 0:00:09]} 15. bxc4 {[%emt 0:00:01]} Rc8 {[%emt 0:00:06]} 16. g4 {[%emt 0:00:15]} Rxc4 17. Qb3 {[%emt 0:00:22]} Bd3 {[%emt 0:00:09]} 18. Rfd1 {[%emt 0:00:02]} e4 {[%emt 0:00:08]} 19. Rxd3 {[%emt 0:00:04]} exd3 {[%emt 0:00:03]} 20. Qxc4 {[%emt 0:00:02]} Nxd5 {[%emt 0:00:01]} 21. Qxd5 {[%emt 0:00:07]} Bxc3 {[%emt 0:00:02]} 22. Rd1 {[%emt 0:00:04]} Nf6 {[%emt 0:00:04]} 23. Qxd3 {[%emt 0:00:03]} Qa5 {[%emt 0:00:03]} 24. Bxh6 1-0

[Event "RUS-ch Blitz Women 2018"]
[Site "Sochi"]
[Date "2018.10.07"]
[Round "19"]
[White "Styazhkina, Anna"]
[Black "Vasilevich, Tatjana"]
[Result "0-1"]
[ECO "B40"]
[WhiteElo "2128"]
[BlackElo "2360"]
[Annotator "NA"]
[PlyCount "114"]
[EventDate "2018.10.07"]
[EventType "swiss"]
[EventCountry "RUS"]
[SourceTitle "playchess.com"]
[Source "ChessBase"]
[SourceQuality "1"]
[TimeControl "180+2"]

1. e4 {[%emt 0:00:01]} c5 {[%emt 0:00:00]} 2. Nf3 {[%emt 0:00:02]} e6 {[%emt 0:00:00]} 3. c4 {[%emt 0:00:02]} Nc6 {[%emt 0:00:00]} 4. Nc3 {[%emt 0:00:02]} Nd4 $11 {[%emt 0:00:02]} 5. d3 {[%emt 0:00:07]} g6 {[%emt 0:00:01]} 6. g3 {[%emt 0:00:05]} Bg7 {[%emt 0:00:01]} 7. Nxd4 {[%emt 0:00:05]} cxd4 {[%emt 0:00:15]} 8. Ne2 {[%emt 0:00:01]} e5 {[%emt 0:00:09]} 9. b3 {[%emt 0:00:09]} h5 {[%emt 0:00:17]} 10. Bg2 {[%emt 0:00:04]} h4 {[%emt 0:00:02]} 11. h3 hxg3 {[%emt 0:00:04]} 12. fxg3 {[%emt 0:00:04]} d6 {[%emt 0:00:05]} 13. Ng1 {[%emt 0:00:41]} Nf6 {[%emt 0:00:29]} 14. Qe2 {[%emt 0:00:10]} Nh5 {[%emt 0:00:14]} 15. Qf2 {[%emt 0:00:03]} Bf6 {[%emt 0:00:06]} 16. Nf3 {[%emt 0:00:05]} Be6 {[%emt 0:00:14]} 17. Bd2 {[%emt 0:00:41]} Be7 {[%emt 0:00:13]} 18. g4 {[%emt 0:00:24]} Nf6 {[%emt 0:00:17]} 19. Rf1 {[%emt 0:00:09]} Nh7 {[%emt 0:00:11]} 20. Ke2 {[%emt 0:00:14]} Ng5 {[%emt 0:00:09]} 21. Bxg5 {[%emt 0:00:10]} Bxg5 {[%emt 0:00:01]} 22. Nxg5 {[%emt 0:00:11]} Qxg5 {[%emt 0:00:01]} 23. Rac1 {[%emt 0:00:03]} b6 {[%emt 0:00:07]} 24. b4 {[%emt 0:00:02]} Rc8 {[%emt 0:00:06]} 25. b5 {[%emt 0:00:07]} Kf8 {[%emt 0:00:04]} 26. a4 {[%emt 0:00:02]} Kg7 {[%emt 0:00:07]} 27. Qg3 {[%emt 0:00:03]} f5 {[%emt 0:00:18]} 28. exf5 {[%emt 0:00:04]} gxf5 {[%emt 0:00:00]} 29. Rg1 {[%emt 0:00:02]} fxg4 {[%emt 0:00:11]} 30. hxg4 {[%emt 0:00:04]} Bxg4+ {[%emt 0:00:11]} 31. Qxg4 {[%emt 0:00:02]} Qxg4+ {[%emt 0:00:01]} 32. Bf3 {[%emt 0:00:00]} Qxg1 {[%emt 0:00:03]} 33. Rxg1+ {[%emt 0:00:01]} Kf6 {[%emt 0:00:00]} 34. Be4 {[%emt 0:00:03]} Rcg8 {[%emt 0:00:01]} 35. Rf1+ {[%emt 0:00:01]} Ke7 {[%emt 0:00:01]} 36. a5 {[%emt 0:00:02]} Rh2+ {[%emt 0:00:02]} 37. Kd1 {[%emt 0:00:01]} bxa5 {[%emt 0:00:01]} 38. Bd5 {[%emt 0:00:02]} Rg7 {[%emt 0:00:02]} 39. Kc1 {[%emt 0:00:03]} a4 {[%emt 0:00:01]} 40. Kb1 {[%emt 0:00:01]} a3 {[%emt 0:00:01]} 41. Ka1 Rgh7 {[%emt 0:00:04]} 42. Rg1 {[%emt 0:00:03]} Rf2 {[%emt 0:00:04]} 43. Rb1 {[%emt 0:00:04]} Rhh2 {[%emt 0:00:01]} 44. c5 {[%emt 0:00:02]} dxc5 {[%emt 0:00:02]} 45. Bc4 {[%emt 0:00:01]} Kd6 {[%emt 0:00:01]} 46. b6 {[%emt 0:00:02]} axb6 {[%emt 0:00:01]} 47. Rxb6+ {[%emt 0:00:01]} Kc7 {[%emt 0:00:00]} 48. Rb1 {[%emt 0:00:02]} Rd2 {[%emt 0:00:02]} 49. Re1 {[%emt 0:00:02]} Rhf2 {[%emt 0:00:01]} 50. Kb1 {[%emt 0:00:03]} Kb6 {[%emt 0:00:03]} 51. Ka1 {[%emt 0:00:01]} Ka5 {[%emt 0:00:01]} 52. Kb1 {[%emt 0:00:03]} Kb4 {[%emt 0:00:01]} 53. Ka1 {[%emt 0:00:01]} Kc3 {[%emt 0:00:01]} 54. Rc1+ {[%emt 0:00:02]} Rc2 {[%emt 0:00:01]} 55. Re1 {[%emt 0:00:02]} Kd2 {[%emt 0:00:03]} 56. Rh1 {[%emt 0:00:03]} Rc1+ {[%emt 0:00:01]} 57. Rxc1 {[%emt 0:00:02]} Kxc1 {[%emt 0:00:01]} 0-1

[Event "RUS-ch Blitz Women 2018"]
[Site "Sochi"]
[Date "2018.10.07"]
[Round "19"]
[White "Sirotkina, Nina"]
[Black "Vasilevich, Irina"]
[Result "0-1"]
[ECO "A40"]
[WhiteElo "2021"]
[BlackElo "2258"]
[Annotator "NA"]
[PlyCount "53"]
[EventDate "2018.10.07"]
[EventType "swiss"]
[EventCountry "RUS"]
[SourceTitle "playchess.com"]
[Source "ChessBase"]
[SourceQuality "1"]
[TimeControl "180+2"]

1. d4 {[%emt 0:00:00]} e6 {[%emt 0:00:00]} 2. Bf4 {[%emt 0:00:04]} c5 {[%emt 0:00:03]} 3. e3 {[%emt 0:00:04]} b6 {[%emt 0:00:01]} 4. Nf3 {[%emt 0:00:06]} Bb7 {[%emt 0:00:01]} 5. Be2 {[%emt 0:00:02]} Nf6 {[%emt 0:00:02]} 6. h3 {[%emt 0:00:02]} Be7 {[%emt 0:00:02]} 7. O-O {[%emt 0:00:02]} O-O {[%emt 0:00:03]} 8. c3 {[%emt 0:00:10]} d6 {[%emt 0:00:03]} 9. Nbd2 {[%emt 0:00:02]} Re8 {[%emt 0:00:05]} 10. Bd3 {[%emt 0:00:05]} Bf8 {[%emt 0:00:12]} 11. Bg5 {[%emt 0:00:19]} Nbd7 {[%emt 0:00:10]} 12. e4 {[%emt 0:00:08]} e5 {[%emt 0:00:11]} 13. dxe5 {[%emt 0:00:18]} dxe5 {[%emt 0:00:04]} 14. Qe2 {[%emt 0:00:08]} h6 {[%emt 0:00:08]} 15. Bh4 {[%emt 0:00:08]} Qc7 {[%emt 0:00:28]} 16. a4 {[%emt 0:00:03]} Rad8 {[%emt 0:00:05]} 17. Rfd1 {[%emt 0:00:14]} Be7 {[%emt 0:00:06]} 18. Nc4 {[%emt 0:00:07]} Nh5 {[%emt 0:00:45]} 19. Bxe7 {[%emt 0:00:13]} Rxe7 {[%emt 0:00:02]} 20. g3 {[%emt 0:00:02]} Nhf6 {[%emt 0:00:07]} 21. Ne3 {[%emt 0:00:13]} Nf8 {[%emt 0:00:18]} 22. Nf5 {[%emt 0:00:07]} Red7 {[%emt 0:00:03]} 23. Ne1 {[%emt 0:00:52]} c4 {[%emt 0:00:05]} 24. Bc2 {[%emt 0:00:09]} Rxd1 {[%emt 0:00:03]} 25. Rxd1 {[%emt 0:00:02]} Rxd1 {[%emt 0:00:01]} 26. Qxd1 {[%emt 0:00:06]} Bxe4 {[%emt 0:00:04]} 27. Bxe4 {[%emt 0:00:08]} 0-1

[Event "RUS-ch Blitz Women 2018"]
[Site "Sochi"]
[Date "2018.10.07"]
[Round "19"]
[White "Miroshnik, Ekaterina"]
[Black "Gritsayeva, Oksana"]
[Result "0-1"]
[ECO "E10"]
[WhiteElo "2016"]
[BlackElo "2378"]
[Annotator "NA"]
[PlyCount "58"]
[EventDate "2018.10.07"]
[EventType "swiss"]
[EventCountry "RUS"]
[SourceTitle "playchess.com"]
[Source "ChessBase"]
[SourceQuality "1"]
[TimeControl "180+2"]

1. d4 {[%emt 0:00:00]} Nf6 {[%emt 0:00:00]} 2. c4 {[%emt 0:00:02]} e6 {[%emt 0:00:02]} 3. Nf3 {[%emt 0:00:02]} c5 {[%emt 0:00:02]} 4. d5 {[%emt 0:00:02]} b5 $14 {[%emt 0:00:02]} 5. dxe6 {[%emt 0:00:24]} fxe6 {[%emt 0:00:01]} 6. cxb5 {[%emt 0:00:01]} a6 {[%emt 0:00:01]} 7. Nc3 {[%emt 0:00:07]} axb5 {[%emt 0:00:12]} 8. Nxb5 {[%emt 0:00:02]} Qa5+ {[%emt 0:00:03]} 9. Nc3 {[%emt 0:00:02]} d5 {[%emt 0:00:05]} 10. e3 {[%emt 0:00:01]} Bd6 {[%emt 0:00:09]} 11. Bb5+ {[%emt 0:00:07]} Bd7 {[%emt 0:00:22]} 12. Bxd7+ {[%emt 0:00:05]} Nbxd7 {[%emt 0:00:01]} 13. O-O {[%emt 0:00:04]} O-O {[%emt 0:00:03]} 14. Qc2 {[%emt 0:00:06]} Rfe8 {[%emt 0:00:33]} 15. b3 {[%emt 0:00:10]} e5 {[%emt 0:00:16]} 16. Nd2 {[%emt 0:00:21]} e4 {[%emt 0:00:11]} 17. Bb2 {[%emt 0:00:11]} Bb8 {[%emt 0:00:08]} 18. Na4 {[%emt 0:00:04]} Qc7 {[%emt 0:00:02]} 19. g3 {[%emt 0:00:08]} Qd6 {[%emt 0:00:07]} 20. Rfc1 {[%emt 0:00:14]} Ba7 {[%emt 0:00:01]} 21. Ba3 {[%emt 0:00:10]} Rac8 {[%emt 0:00:05]} 22. Qb2 {[%emt 0:00:26]} Ng4 {[%emt 0:00:04]} 23. Rc2 {[%emt 0:00:09]} Qh6 {[%emt 0:00:10]} 24. Nf1 {[%emt 0:00:01]} Nge5 {[%emt 0:00:10]} 25. Qc3 {[%emt 0:00:17]} Qh3 {[%emt 0:00:09]} 26. Rd1 {[%emt 0:00:14]} Nf3+ {[%emt 0:00:09]} 27. Kh1 {[%emt 0:00:01]} Re6 {[%emt 0:00:02]} 28. Rxd5 {[%emt 0:00:17]} Rh6 {[%emt 0:00:05]} 29. Rxd7 {[%emt 0:00:03]} Qxh2+ {[%emt 0:00:03]} 0-1